[Event "Titled Tuesday Blitz November 01 Late 2022"]
[White "Sivakumar, Shaaketh"]
[Black "Roque Sola, Jose Luis"]
[WhiteFideId "30940176"]
[BlackFideId "5120390"]
[WhiteElo "2174"]
[BlackElo "2117"]
[Result "0-1"]
[Round "04"]
[TimeControl "180+1"]
[Date "2022.11.02"]
[WhiteClock "0:01:38"]
[BlackClock "0:00:15"]

1. d4 {[%clk 0:03:00]}  Nf6 {[%clk 0:02:59]} 2. Nf3 {[%clk 0:03:01]}  g6 {[%clk 0:02:56]} 3. Nc3 {[%clk 0:03:02]}  d5 {[%clk 0:02:55]} 4. Bf4 {[%clk 0:03:02]}  Bg7 {[%clk 0:02:52]} 5. e3 {[%clk 0:03:03]}  c6 {[%clk 0:02:51]} 6. h4 {[%clk 0:03:04]}  h5 {[%clk 0:02:44]} 7. Ne5 {[%clk 0:03:04]}  O-O {[%clk 0:02:28]} 8. Be2 {[%clk 0:02:57]}  Nbd7 {[%clk 0:02:27]} 9. Qd2 {[%clk 0:02:57]}  Nxe5 {[%clk 0:02:12]} 10. Bxe5 {[%clk 0:02:58]}  Bf5 {[%clk 0:02:02]} 11. O-O-O {[%clk 0:02:56]}  b5 {[%clk 0:02:00]} 12. Rdg1 {[%clk 0:02:46]}  b4 {[%clk 0:01:58]} 13. Nd1 {[%clk 0:02:46]}  Qa5 {[%clk 0:01:44]} 14. Kb1 {[%clk 0:02:46]}  Ne4 {[%clk 0:01:40]} 15. Qc1 {[%clk 0:02:43]}  Bxe5 {[%clk 0:01:32]} 16. dxe5 {[%clk 0:02:41]}  b3 {[%clk 0:01:25]} 17. axb3 {[%clk 0:02:39]}  Nd2+ {[%clk 0:01:20]} 18. Qxd2 {[%clk 0:02:38]}  Qxd2 {[%clk 0:01:21]} 19. Nc3 {[%clk 0:02:35]}  Qxc2+ {[%clk 0:01:18]} 20. Ka2 {[%clk 0:02:06]}  Rfb8 {[%clk 0:00:58]} 21. Bd1 {[%clk 0:02:05]}  Qd2 {[%clk 0:00:52]} 22. g4 {[%clk 0:02:02]}  Bxg4 {[%clk 0:00:42]} 23. f3 {[%clk 0:01:58]}  Be6 {[%clk 0:00:33]} 24. Ne2 {[%clk 0:01:53]}  Qxe3 {[%clk 0:00:30]} 25. f4 {[%clk 0:01:51]}  d4 {[%clk 0:00:27]} 26. Rg3 {[%clk 0:01:52]}  Qe4 {[%clk 0:00:19]} 27. Rhh3 {[%clk 0:01:51]}  a5 {[%clk 0:00:15]} 28. Rd3 {[%clk 0:01:43]}  a4 {[%clk 0:00:15]} 29. Rxd4 {[%clk 0:01:38]}  axb3# {[%clk 0:00:15]} 0-1


[Site "https://www.chess.com"]

[Event "Titled Tuesday Blitz November 01 Late 2022"]
[White "Sjugirov, Sanan"]
[Black "Goltsev, Dmitry"]
[WhiteFideId "4189302"]
[BlackFideId "24176710"]
[WhiteElo "2609"]
[BlackElo "2257"]
[Result "1/2-1/2"]
[Round "04"]
[TimeControl "180+1"]
[Date "2022.11.01"]
[WhiteClock "0:00:10"]
[BlackClock "0:00:13"]

1. Nf3 {[%clk 0:03:00]}  d5 {[%clk 0:03:00]} 2. g3 {[%clk 0:03:01]}  Nf6 {[%clk 0:02:59]} 3. Bg2 {[%clk 0:03:01]}  c5 {[%clk 0:03:00]} 4. O-O {[%clk 0:03:00]}  Nc6 {[%clk 0:03:00]} 5. d4 {[%clk 0:03:00]}  cxd4 {[%clk 0:03:00]} 6. Nxd4 {[%clk 0:03:01]}  e5 {[%clk 0:03:01]} 7. Nxc6 {[%clk 0:03:00]}  bxc6 {[%clk 0:03:02]} 8. c4 {[%clk 0:03:01]}  Be7 {[%clk 0:03:00]} 9. Nc3 {[%clk 0:02:52]}  Be6 {[%clk 0:02:58]} 10. Bg5 {[%clk 0:02:50]}  e4 {[%clk 0:02:51]} 11. Qa4 {[%clk 0:02:41]}  O-O {[%clk 0:02:48]} 12. Rad1 {[%clk 0:02:29]}  Qb6 {[%clk 0:02:39]} 13. cxd5 {[%clk 0:02:16]}  cxd5 {[%clk 0:02:37]} 14. Bxf6 {[%clk 0:02:11]}  Bxf6 {[%clk 0:02:38]} 15. Nxd5 {[%clk 0:02:11]}  Bxd5 {[%clk 0:02:39]} 16. Rxd5 {[%clk 0:02:11]}  Qxb2 {[%clk 0:02:39]} 17. e3 {[%clk 0:02:06]}  Rfe8 {[%clk 0:01:56]} 18. Bxe4 {[%clk 0:02:00]}  Rab8 {[%clk 0:01:56]} 19. Bf3 {[%clk 0:01:48]}  Re7 {[%clk 0:01:53]} 20. Rfd1 {[%clk 0:01:46]}  g6 {[%clk 0:01:50]} 21. R5d2 {[%clk 0:01:31]}  Qc3 {[%clk 0:01:44]} 22. Rc2 {[%clk 0:01:22]}  Qb4 {[%clk 0:01:43]} 23. Qa6 {[%clk 0:01:05]}  Qb6 {[%clk 0:01:38]} 24. Qe2 {[%clk 0:01:02]}  Qa5 {[%clk 0:01:32]} 25. Kg2 {[%clk 0:01:01]}  Kg7 {[%clk 0:01:31]} 26. h4 {[%clk 0:01:00]}  Qa3 {[%clk 0:01:29]} 27. Rd3 {[%clk 0:00:59]}  Qb4 {[%clk 0:01:25]} 28. Rb3 {[%clk 0:00:57]}  Qd6 {[%clk 0:01:25]} 29. Rc6 {[%clk 0:00:57]}  Qe5 {[%clk 0:01:24]} 30. Rxb8 {[%clk 0:00:43]}  Qxb8 {[%clk 0:01:25]} 31. Bd5 {[%clk 0:00:43]}  Qb2 {[%clk 0:01:15]} 32. Qf3 {[%clk 0:00:42]}  h5 {[%clk 0:01:11]} 33. Ra6 {[%clk 0:00:31]}  Qe5 {[%clk 0:01:09]} 34. Bb3 {[%clk 0:00:28]}  Rc7 {[%clk 0:01:04]} 35. Ra4 {[%clk 0:00:28]}  Re7 {[%clk 0:01:03]} 36. Rf4 {[%clk 0:00:28]}  Qd6 {[%clk 0:01:01]} 37. Rc4 {[%clk 0:00:23]}  Qe5 {[%clk 0:01:00]} 38. Qc6 {[%clk 0:00:17]}  Re6 {[%clk 0:00:50]} 39. Qa8 {[%clk 0:00:14]}  Re7 {[%clk 0:00:47]} 40. Rb4 {[%clk 0:00:12]}  Qc7 {[%clk 0:00:22]} 41. Bd5 {[%clk 0:00:10]}  Kh7 {[%clk 0:00:19]} 42. Rf4 {[%clk 0:00:07]}  Kg7 {[%clk 0:00:18]} 43. Rf3 {[%clk 0:00:07]}  Qe5 {[%clk 0:00:17]} 44. Bb3 {[%clk 0:00:08]}  Rc7 {[%clk 0:00:17]} 45. Qd5 {[%clk 0:00:07]}  Qxd5 {[%clk 0:00:17]} 46. Bxd5 {[%clk 0:00:08]}  Rd7 {[%clk 0:00:17]} 47. Bb3 {[%clk 0:00:08]}  Rc7 {[%clk 0:00:18]} 48. Rf4 {[%clk 0:00:08]}  a5 {[%clk 0:00:17]} 49. Ra4 {[%clk 0:00:08]}  Bc3 {[%clk 0:00:17]} 50. Re4 {[%clk 0:00:07]}  Bb4 {[%clk 0:00:17]} 51. Rd4 {[%clk 0:00:06]}  Re7 {[%clk 0:00:17]} 52. Rc4 {[%clk 0:00:06]}  Rd7 {[%clk 0:00:17]} 53. Rf4 {[%clk 0:00:05]}  Re7 {[%clk 0:00:17]} 54. Kf3 {[%clk 0:00:03]}  Bd6 {[%clk 0:00:17]} 55. Rd4 {[%clk 0:00:04]}  Bb4 {[%clk 0:00:17]} 56. Rd5 {[%clk 0:00:04]}  Re6 {[%clk 0:00:15]} 57. Rd7 {[%clk 0:00:04]}  Re7 {[%clk 0:00:15]} 58. Rd4 {[%clk 0:00:04]}  Rc7 {[%clk 0:00:15]} 59. Rd3 {[%clk 0:00:04]}  Re7 {[%clk 0:00:15]} 60. Kg2 {[%clk 0:00:04]}  Kf6 {[%clk 0:00:15]} 61. f4 {[%clk 0:00:04]}  Kg7 {[%clk 0:00:15]} 62. Kf3 {[%clk 0:00:05]}  Rc7 {[%clk 0:00:16]} 63. g4 {[%clk 0:00:02]}  hxg4+ {[%clk 0:00:15]} 64. Kxg4 {[%clk 0:00:03]}  Re7 {[%clk 0:00:16]} 65. Kf3 {[%clk 0:00:03]}  Rc7 {[%clk 0:00:16]} 66. Kg4 {[%clk 0:00:04]}  Be7 {[%clk 0:00:15]} 67. h5 {[%clk 0:00:04]}  f5+ {[%clk 0:00:15]} 68. Kf3 {[%clk 0:00:04]}  gxh5 {[%clk 0:00:15]} 69. Rd5 {[%clk 0:00:05]}  Rc5 {[%clk 0:00:12]} 70. Rd7 {[%clk 0:00:04]}  Kf6 {[%clk 0:00:12]} 71. Ra7 {[%clk 0:00:04]}  Rc3 {[%clk 0:00:11]} 72. Ra6+ {[%clk 0:00:04]}  Kg7 {[%clk 0:00:11]} 73. Rxa5 {[%clk 0:00:03]}  Bc5 {[%clk 0:00:12]} 74. Kg2 {[%clk 0:00:03]}  h4 {[%clk 0:00:08]} 75. Rb5 {[%clk 0:00:03]}  Bxe3 {[%clk 0:00:05]} 76. Rxf5 {[%clk 0:00:03]}  Bd2 {[%clk 0:00:05]} 77. Rg5+ {[%clk 0:00:02]}  Kf6 {[%clk 0:00:05]} 78. Rh5 {[%clk 0:00:03]}  h3+ {[%clk 0:00:04]} 79. Rxh3 {[%clk 0:00:03]}  Rxh3 {[%clk 0:00:05]} 80. Kxh3 {[%clk 0:00:04]}  Bxf4 {[%clk 0:00:06]} 81. Kg2 {[%clk 0:00:04]}  Bc7 {[%clk 0:00:06]} 82. Kf3 {[%clk 0:00:05]}  Ke5 {[%clk 0:00:07]} 83. Ke2 {[%clk 0:00:06]}  Kd6 {[%clk 0:00:08]} 84. Kd3 {[%clk 0:00:07]}  Kc5 {[%clk 0:00:09]} 85. Kc2 {[%clk 0:00:08]}  Kb6 {[%clk 0:00:10]} 86. a4 {[%clk 0:00:09]}  Ka7 {[%clk 0:00:11]} 87. a5 {[%clk 0:00:10]}  Bb8 {[%clk 0:00:12]} 88. a6 {[%clk 0:00:10]}  Kxa6 {[%clk 0:00:13]} 1/2-1/2


[Site "https://www.chess.com"]

[Event "Titled Tuesday Blitz November 01 Late 2022"]
[White "Souleidis, Georgios"]
[Black "Jarocka, Liwia"]
[WhiteFideId "4206827"]
[BlackFideId "21807558"]
[WhiteElo "2401"]
[BlackElo "1989"]
[Result "1-0"]
[Round "04"]
[TimeControl "180+1"]
[Date "2022.11.02"]
[WhiteClock "0:00:07"]
[BlackClock "0:00:15"]

1. e4 {[%clk 0:03:00]}  e6 {[%clk 0:02:58]} 2. d4 {[%clk 0:03:00]}  d5 {[%clk 0:02:59]} 3. exd5 {[%clk 0:03:00]}  exd5 {[%clk 0:02:59]} 4. Nf3 {[%clk 0:03:01]}  Bd6 {[%clk 0:02:58]} 5. c4 {[%clk 0:03:01]}  dxc4 {[%clk 0:02:57]} 6. Bxc4 {[%clk 0:03:01]}  Ne7 {[%clk 0:02:58]} 7. O-O {[%clk 0:03:02]}  O-O {[%clk 0:02:58]} 8. h3 {[%clk 0:02:59]}  c6 {[%clk 0:02:58]} 9. Re1 {[%clk 0:02:59]}  Nd7 {[%clk 0:02:58]} 10. Nc3 {[%clk 0:02:59]}  Nb6 {[%clk 0:02:59]} 11. Bb3 {[%clk 0:03:00]}  Bb4 {[%clk 0:02:56]} 12. a3 {[%clk 0:02:58]}  Bxc3 {[%clk 0:02:55]} 13. bxc3 {[%clk 0:02:59]}  Ned5 {[%clk 0:02:55]} 14. c4 {[%clk 0:02:53]}  Nf6 {[%clk 0:02:53]} 15. Bg5 {[%clk 0:02:52]}  h6 {[%clk 0:02:52]} 16. Bh4 {[%clk 0:02:52]}  Bf5 {[%clk 0:02:50]} 17. a4 {[%clk 0:02:46]}  Nbd7 {[%clk 0:02:50]} 18. a5 {[%clk 0:02:40]}  b6 {[%clk 0:02:39]} 19. Qd2 {[%clk 0:02:33]}  bxa5 {[%clk 0:02:34]} 20. Rxa5 {[%clk 0:02:25]}  Qb6 {[%clk 0:02:30]} 21. Qa2 {[%clk 0:01:42]}  Be6 {[%clk 0:02:17]} 22. d5 {[%clk 0:01:31]}  cxd5 {[%clk 0:02:16]} 23. cxd5 {[%clk 0:01:31]}  Bf5 {[%clk 0:02:15]} 24. Ra6 {[%clk 0:01:21]}  Qb4 {[%clk 0:02:07]} 25. Bg3 {[%clk 0:01:14]}  Rfe8 {[%clk 0:01:59]} 26. Rxe8+ {[%clk 0:01:06]}  Rxe8 {[%clk 0:01:55]} 27. d6 {[%clk 0:01:04]}  Bg6 {[%clk 0:01:47]} 28. Rxa7 {[%clk 0:01:01]}  Rd8 {[%clk 0:01:40]} 29. Ra8 {[%clk 0:01:00]}  Qb6 {[%clk 0:01:35]} 30. Rxd8+ {[%clk 0:00:59]}  Qxd8 {[%clk 0:01:36]} 31. Qa7 {[%clk 0:00:55]}  Ne4 {[%clk 0:01:33]} 32. Qc7 {[%clk 0:00:50]}  Qxc7 {[%clk 0:01:00]} 33. dxc7 {[%clk 0:00:50]}  Nb6 {[%clk 0:01:01]} 34. Bf4 {[%clk 0:00:32]}  Nc5 {[%clk 0:00:53]} 35. Bd5 {[%clk 0:00:17]}  Bf5 {[%clk 0:00:50]} 36. Bc6 {[%clk 0:00:17]}  Bc8 {[%clk 0:00:31]} 37. Nd4 {[%clk 0:00:16]}  Ne6 {[%clk 0:00:26]} 38. Nxe6 {[%clk 0:00:16]}  fxe6 {[%clk 0:00:27]} 39. Be3 {[%clk 0:00:14]}  Nd5 {[%clk 0:00:26]} 40. Bxd5 {[%clk 0:00:06]}  exd5 {[%clk 0:00:24]} 41. Bd4 {[%clk 0:00:07]}  g6 {[%clk 0:00:23]} 42. f4 {[%clk 0:00:07]}  Kf7 {[%clk 0:00:24]} 43. g4 {[%clk 0:00:08]}  Ke6 {[%clk 0:00:24]} 44. Kf2 {[%clk 0:00:07]}  Kd7 {[%clk 0:00:24]} 45. Be5 {[%clk 0:00:08]}  Kc6 {[%clk 0:00:23]} 46. Ke3 {[%clk 0:00:08]}  h5 {[%clk 0:00:23]} 47. f5 {[%clk 0:00:05]}  hxg4 {[%clk 0:00:18]} 48. hxg4 {[%clk 0:00:06]}  gxf5 {[%clk 0:00:18]} 49. g5 {[%clk 0:00:07]}  Be6 {[%clk 0:00:18]} 50. g6 {[%clk 0:00:06]}  Kd7 {[%clk 0:00:18]} 51. g7 {[%clk 0:00:07]}  Kc8 {[%clk 0:00:17]} 52. Kf4 {[%clk 0:00:07]}  d4 {[%clk 0:00:17]} 53. Kf3 {[%clk 0:00:07]}  Bd5+ {[%clk 0:00:15]} 54. Ke2 {[%clk 0:00:07]}  Be4 {[%clk 0:00:15]} 55. g8=Q+ {[%clk 0:00:07]} 1-0


[Site "https://www.chess.com"]

[Event "Titled Tuesday Blitz November 01 Late 2022"]
[White "Spitzl, Vinzent"]
[Black "Zanette, Edgard Vinicius"]
[WhiteFideId "12901253"]
[BlackFideId "2109263"]
[WhiteElo "2247"]
[BlackElo "2236"]
[Result "1/2-1/2"]
[Round "04"]
[TimeControl "180+1"]
[Date "2022.11.02"]
[WhiteClock "0:00:02"]
[BlackClock "0:00:30"]

1. d4 {[%clk 0:03:00]}  Nf6 {[%clk 0:02:40]} 2. c4 {[%clk 0:03:00]}  e6 {[%clk 0:02:40]} 3. Nf3 {[%clk 0:03:00]}  b6 {[%clk 0:02:38]} 4. a3 {[%clk 0:02:57]}  Ba6 {[%clk 0:02:38]} 5. Qc2 {[%clk 0:02:49]}  Bb7 {[%clk 0:02:32]} 6. Bf4 {[%clk 0:02:48]}  Ne4 {[%clk 0:02:28]} 7. Nfd2 {[%clk 0:02:35]}  f5 {[%clk 0:02:23]} 8. f3 {[%clk 0:02:30]}  Nxd2 {[%clk 0:02:21]} 9. Qxd2 {[%clk 0:02:26]}  Bd6 {[%clk 0:02:15]} 10. Nc3 {[%clk 0:02:21]}  Qh4+ {[%clk 0:02:10]} 11. g3 {[%clk 0:02:20]}  Bxf4 {[%clk 0:02:09]} 12. Qxf4 {[%clk 0:02:19]}  Qxf4 {[%clk 0:02:08]} 13. gxf4 {[%clk 0:02:20]}  Nc6 {[%clk 0:02:04]} 14. e3 {[%clk 0:02:19]}  O-O {[%clk 0:02:02]} 15. Bd3 {[%clk 0:02:14]}  Ne7 {[%clk 0:01:42]} 16. Kf2 {[%clk 0:02:13]}  a6 {[%clk 0:01:35]} 17. b4 {[%clk 0:01:59]}  d6 {[%clk 0:01:31]} 18. Rhg1 {[%clk 0:01:58]}  g6 {[%clk 0:01:22]} 19. h4 {[%clk 0:01:57]}  Kf7 {[%clk 0:01:17]} 20. h5 {[%clk 0:01:52]}  Rh8 {[%clk 0:01:11]} 21. Rh1 {[%clk 0:01:47]}  Rag8 {[%clk 0:01:10]} 22. Rag1 {[%clk 0:01:47]}  gxh5 {[%clk 0:00:57]} 23. Rxg8 {[%clk 0:01:47]}  Nxg8 {[%clk 0:00:57]} 24. Rxh5 {[%clk 0:01:46]}  Nf6 {[%clk 0:00:58]} 25. Rh1 {[%clk 0:01:42]}  Rc8 {[%clk 0:00:56]} 26. e4 {[%clk 0:01:27]}  fxe4 {[%clk 0:00:55]} 27. fxe4 {[%clk 0:01:27]}  Rh8 {[%clk 0:00:52]} 28. Rh4 {[%clk 0:01:23]}  h5 {[%clk 0:00:51]} 29. d5 {[%clk 0:01:16]}  e5 {[%clk 0:00:47]} 30. fxe5 {[%clk 0:01:11]}  Ng4+ {[%clk 0:00:47]} 31. Ke1 {[%clk 0:01:05]}  Nxe5 {[%clk 0:00:47]} 32. Be2 {[%clk 0:01:05]}  Kg6 {[%clk 0:00:47]} 33. Kd2 {[%clk 0:01:00]}  Kg5 {[%clk 0:00:47]} 34. Rh1 {[%clk 0:00:59]}  Bc8 {[%clk 0:00:44]} 35. c5 {[%clk 0:00:56]}  bxc5 {[%clk 0:00:41]} 36. bxc5 {[%clk 0:00:57]}  dxc5 {[%clk 0:00:39]} 37. Ke3 {[%clk 0:00:57]}  a5 {[%clk 0:00:37]} 38. Nb5 {[%clk 0:00:55]}  Rh7 {[%clk 0:00:36]} 39. d6 {[%clk 0:00:47]}  cxd6 {[%clk 0:00:34]} 40. Nxd6 {[%clk 0:00:47]}  Bg4 {[%clk 0:00:33]} 41. Bb5 {[%clk 0:00:42]}  Kh6 {[%clk 0:00:26]} 42. Rc1 {[%clk 0:00:39]}  Rc7 {[%clk 0:00:24]} 43. Kf4 {[%clk 0:00:35]}  Ng6+ {[%clk 0:00:21]} 44. Kg3 {[%clk 0:00:35]}  Be6 {[%clk 0:00:20]} 45. Ne8 {[%clk 0:00:31]}  h4+ {[%clk 0:00:20]} 46. Kh2 {[%clk 0:00:29]}  Rf7 {[%clk 0:00:21]} 47. Rxc5 {[%clk 0:00:26]}  Rf2+ {[%clk 0:00:20]} 48. Kg1 {[%clk 0:00:26]}  Ra2 {[%clk 0:00:21]} 49. Rc3 {[%clk 0:00:19]}  h3 {[%clk 0:00:20]} 50. Nd6 {[%clk 0:00:18]}  h2+ {[%clk 0:00:20]} 51. Kh1 {[%clk 0:00:17]}  Nh4 {[%clk 0:00:18]} 52. Bd3 {[%clk 0:00:14]}  Bg4 {[%clk 0:00:18]} 53. Rc2 {[%clk 0:00:14]}  Bf3+ {[%clk 0:00:18]} 54. Kxh2 {[%clk 0:00:14]}  Rxc2+ {[%clk 0:00:16]} 55. Bxc2 {[%clk 0:00:14]}  Ng6 {[%clk 0:00:16]} 56. Kg3 {[%clk 0:00:14]}  Be2 {[%clk 0:00:17]} 57. Nf5+ {[%clk 0:00:13]}  Kg5 {[%clk 0:00:16]} 58. Kf2 {[%clk 0:00:14]}  Ba6 {[%clk 0:00:16]} 59. Ke3 {[%clk 0:00:14]}  Ne5 {[%clk 0:00:16]} 60. Kd4 {[%clk 0:00:13]}  Nc4 {[%clk 0:00:17]} 61. Bd3 {[%clk 0:00:12]}  Nxa3 {[%clk 0:00:15]} 62. Bxa6 {[%clk 0:00:12]}  Nb1 {[%clk 0:00:14]} 63. Kd3 {[%clk 0:00:07]}  Kf4 {[%clk 0:00:12]} 64. Nd6 {[%clk 0:00:04]}  Na3 {[%clk 0:00:11]} 65. Nc4 {[%clk 0:00:03]}  Nb1 {[%clk 0:00:07]} 66. Kc2 {[%clk 0:00:02]}  Kxe4 {[%clk 0:00:07]} 67. Kxb1 {[%clk 0:00:02]}  Kd4 {[%clk 0:00:07]} 68. Kb2 {[%clk 0:00:03]}  Kc5 {[%clk 0:00:07]} 69. Kb3 {[%clk 0:00:03]}  a4+ {[%clk 0:00:07]} 70. Kxa4 {[%clk 0:00:03]}  Kd4 {[%clk 0:00:08]} 71. Kb4 {[%clk 0:00:04]}  Kd5 {[%clk 0:00:08]} 72. Bb7+ {[%clk 0:00:04]}  Kd4 {[%clk 0:00:09]} 73. Kb5 {[%clk 0:00:04]}  Kd3 {[%clk 0:00:10]} 74. Bd5 {[%clk 0:00:04]}  Kc3 {[%clk 0:00:11]} 75. Kc5 {[%clk 0:00:04]}  Kd3 {[%clk 0:00:11]} 76. Nd6 {[%clk 0:00:04]}  Kc3 {[%clk 0:00:12]} 77. Ne4+ {[%clk 0:00:04]}  Kd3 {[%clk 0:00:13]} 78. Bc6 {[%clk 0:00:04]}  Ke3 {[%clk 0:00:14]} 79. Kd5 {[%clk 0:00:04]}  Kd3 {[%clk 0:00:15]} 80. Bb5+ {[%clk 0:00:05]}  Ke3 {[%clk 0:00:16]} 81. Ke5 {[%clk 0:00:05]}  Kf3 {[%clk 0:00:16]} 82. Bc4 {[%clk 0:00:04]}  Ke3 {[%clk 0:00:17]} 83. Kd5 {[%clk 0:00:02]}  Kf3 {[%clk 0:00:18]} 84. Bd3 {[%clk 0:00:02]}  Ke3 {[%clk 0:00:19]} 85. Bb1 {[%clk 0:00:03]}  Ke2 {[%clk 0:00:19]} 86. Kd4 {[%clk 0:00:03]}  Kf3 {[%clk 0:00:19]} 87. Bd3 {[%clk 0:00:03]}  Kf4 {[%clk 0:00:20]} 88. Nd2 {[%clk 0:00:02]}  Kg5 {[%clk 0:00:19]} 89. Nc4 {[%clk 0:00:03]}  Kf4 {[%clk 0:00:20]} 90. Ne5 {[%clk 0:00:03]}  Kg5 {[%clk 0:00:19]} 91. Ke4 {[%clk 0:00:03]}  Kf6 {[%clk 0:00:19]} 92. Bc4 {[%clk 0:00:04]}  Kg5 {[%clk 0:00:19]} 93. Be6 {[%clk 0:00:03]}  Kf6 {[%clk 0:00:20]} 94. Kd5 {[%clk 0:00:02]}  Kg5 {[%clk 0:00:21]} 95. Nd3 {[%clk 0:00:02]}  Kf6 {[%clk 0:00:22]} 96. Kd6 {[%clk 0:00:01]}  Kg5 {[%clk 0:00:22]} 97. Ke5 {[%clk 0:00:02]}  Kg6 {[%clk 0:00:22]} 98. Nf4+ {[%clk 0:00:02]}  Kg5 {[%clk 0:00:23]} 99. Nd5 {[%clk 0:00:02]}  Kg6 {[%clk 0:00:23]} 100. Bf5+ {[%clk 0:00:02]}  Kg5 {[%clk 0:00:24]} 101. Ne3 {[%clk 0:00:02]}  Kh6 {[%clk 0:00:25]} 102. Kf6 {[%clk 0:00:02]}  Kh5 {[%clk 0:00:25]} 103. Nd5 {[%clk 0:00:02]}  Kh6 {[%clk 0:00:26]} 104. Ne7 {[%clk 0:00:02]}  Kh5 {[%clk 0:00:26]} 105. Ng8 {[%clk 0:00:02]}  Kh4 {[%clk 0:00:27]} 106. Ne7 {[%clk 0:00:02]}  Kg3 {[%clk 0:00:28]} 107. Ke5 {[%clk 0:00:02]}  Kh4 {[%clk 0:00:28]} 108. Nd5 {[%clk 0:00:03]}  Kh5 {[%clk 0:00:29]} 109. Kf6 {[%clk 0:00:03]}  Kh6 {[%clk 0:00:29]} 110. Ne7 {[%clk 0:00:01]}  Kh5 {[%clk 0:00:29]} 111. Ng8 {[%clk 0:00:02]}  Kh4 {[%clk 0:00:29]} 112. Ke5 {[%clk 0:00:02]}  Kh5 {[%clk 0:00:30]} 113. Kf4 {[%clk 0:00:02]}  Kh4 {[%clk 0:00:30]} 114. Nf6 {[%clk 0:00:02]} 1/2-1/2


[Site "https://www.chess.com"]

[Event "Titled Tuesday Blitz November 01 Late 2022"]
[White "Suleymanli, Aydin"]
[Black "Dilanyan, Grigor"]
[WhiteFideId "13413937"]
[BlackFideId "13303570"]
[WhiteElo "2892"]
[BlackElo "2604"]
[Result "1-0"]
[Round "04"]
[TimeControl "180+1"]
[Date "2022.11.02"]
[WhiteClock "0:00:09"]
[BlackClock "0:00:10"]

1. e4 {[%clk 0:03:00]}  e5 {[%clk 0:02:59]} 2. Nc3 {[%clk 0:02:59]}  Nc6 {[%clk 0:02:59]} 3. Bc4 {[%clk 0:02:58]}  Nf6 {[%clk 0:02:58]} 4. d3 {[%clk 0:02:59]}  Na5 {[%clk 0:02:59]} 5. Nge2 {[%clk 0:02:58]}  Nxc4 {[%clk 0:02:59]} 6. dxc4 {[%clk 0:02:59]}  d6 {[%clk 0:02:59]} 7. f3 {[%clk 0:02:49]}  Be7 {[%clk 0:02:56]} 8. Be3 {[%clk 0:02:48]}  O-O {[%clk 0:02:56]} 9. Qd3 {[%clk 0:02:48]}  Be6 {[%clk 0:02:54]} 10. g4 {[%clk 0:02:43]}  Nd7 {[%clk 0:02:52]} 11. b3 {[%clk 0:02:34]}  Bh4+ {[%clk 0:02:50]} 12. Ng3 {[%clk 0:02:32]}  Bg5 {[%clk 0:02:36]} 13. Qd2 {[%clk 0:02:29]}  Bxe3 {[%clk 0:02:35]} 14. Qxe3 {[%clk 0:02:30]}  Qh4 {[%clk 0:02:31]} 15. O-O-O {[%clk 0:02:28]}  Nc5 {[%clk 0:02:28]} 16. Nf5 {[%clk 0:02:23]}  Bxf5 {[%clk 0:02:14]} 17. exf5 {[%clk 0:02:12]}  f6 {[%clk 0:02:00]} 18. Nb5 {[%clk 0:01:56]}  Rf7 {[%clk 0:01:58]} 19. b4 {[%clk 0:01:56]}  Na6 {[%clk 0:01:58]} 20. a3 {[%clk 0:01:55]}  Qg5 {[%clk 0:01:52]} 21. Kd2 {[%clk 0:01:52]}  Qxe3+ {[%clk 0:01:48]} 22. Kxe3 {[%clk 0:01:53]}  Nb8 {[%clk 0:01:48]} 23. c5 {[%clk 0:01:51]}  a6 {[%clk 0:01:45]} 24. Nc3 {[%clk 0:01:44]}  dxc5 {[%clk 0:01:44]} 25. Rd8+ {[%clk 0:01:35]}  Rf8 {[%clk 0:01:44]} 26. Rxf8+ {[%clk 0:01:35]}  Kxf8 {[%clk 0:01:45]} 27. Nd5 {[%clk 0:01:36]}  cxb4 {[%clk 0:01:33]} 28. Nxc7 {[%clk 0:01:33]}  Ra7 {[%clk 0:01:34]} 29. axb4 {[%clk 0:01:31]}  Nc6 {[%clk 0:01:30]} 30. c3 {[%clk 0:01:24]}  b5 {[%clk 0:01:26]} 31. Ne6+ {[%clk 0:01:24]}  Kf7 {[%clk 0:01:26]} 32. Rd1 {[%clk 0:01:23]}  a5 {[%clk 0:01:24]} 33. Rd6 {[%clk 0:01:16]}  Ne7 {[%clk 0:01:23]} 34. Rd8 {[%clk 0:01:05]}  Nc6 {[%clk 0:01:01]} 35. Rc8 {[%clk 0:01:04]}  a4 {[%clk 0:00:57]} 36. Rxc6 {[%clk 0:00:49]}  a3 {[%clk 0:00:57]} 37. Nc5 {[%clk 0:00:49]}  a2 {[%clk 0:00:58]} 38. Nb3 {[%clk 0:00:48]}  a1=Q {[%clk 0:00:56]} 39. Nxa1 {[%clk 0:00:47]}  Rxa1 {[%clk 0:00:57]} 40. Rc7+ {[%clk 0:00:44]}  Kf8 {[%clk 0:00:55]} 41. Rb7 {[%clk 0:00:43]}  Rc1 {[%clk 0:00:52]} 42. Kd3 {[%clk 0:00:40]}  Rd1+ {[%clk 0:00:52]} 43. Ke3 {[%clk 0:00:40]}  Rc1 {[%clk 0:00:52]} 44. Kd2 {[%clk 0:00:41]}  Rf1 {[%clk 0:00:48]} 45. Rxb5 {[%clk 0:00:35]}  Rxf3 {[%clk 0:00:48]} 46. Rb8+ {[%clk 0:00:35]}  Ke7 {[%clk 0:00:48]} 47. Rb7+ {[%clk 0:00:36]}  Kd6 {[%clk 0:00:46]} 48. Rxg7 {[%clk 0:00:32]}  e4 {[%clk 0:00:44]} 49. Rxh7 {[%clk 0:00:32]}  Ke5 {[%clk 0:00:43]} 50. Re7+ {[%clk 0:00:24]}  Kf4 {[%clk 0:00:43]} 51. c4 {[%clk 0:00:23]}  Rf2+ {[%clk 0:00:37]} 52. Kc3 {[%clk 0:00:21]}  e3 {[%clk 0:00:29]} 53. b5 {[%clk 0:00:19]}  Rxh2 {[%clk 0:00:16]} 54. b6 {[%clk 0:00:18]}  Rh1 {[%clk 0:00:13]} 55. b7 {[%clk 0:00:10]}  Rb1 {[%clk 0:00:12]} 56. c5 {[%clk 0:00:10]}  e2 {[%clk 0:00:10]} 57. c6 {[%clk 0:00:09]} 1-0


[Site "https://www.chess.com"]